[Event "Icelandic Chess-ch 2023"]
[Site "Hafnarfjordur"]
[Date "2023.05.17"]
[Round "3.5"]
[White "Gretarsson, Hjorvar Steinn"]
[Black "Kjartansson, Gudmundur"]
[Result "0-1"]
[ECO "C65"]
[WhiteElo "2539"]
[BlackElo "2402"]
[Annotator "TA"]
[PlyCount "138"]
[EventDate "2023.05.13"]
[EventType "tourn"]
[EventCountry "ISL"]
[SourceTitle "playchess.com"]
[Source "ChessBase"]
[SourceQuality "1"]
[TimeControl "40/5400+30:1800+30"]

{[%evp 11,138,0,0,0,3,8,20,14,9,13,15,0,4,9,2,0,7,0,0,0,8,-7,-7,-25,-22,-32,-34,-43,0,0,0,7,0,0,0,-14,-16,-5,0,-31,-31,-20,0,0,0,0,0,0,0,0,0,0,0,-8,0,0,0,0,0,-18,0,0,0,-77,0,0,0,0,8,0,0,0,0,0,0,0,0,0,100,98,1523,0,0,0,0,0,0,0,0,0,0,-8,-8,-8,-8,-8,-8,-43,-43,-46,-8,-8,-8,-8,-8,-29978,-29979,-29983,-29984,-29984,-29985,-29985,-29986,-29986,-29987,-29988,-29989,-29989,-29990,-29990,-29991,-29991,-29992,-29992,-29993,-29993,-29994,-29994,-29995]} 1. e4 {[%emt 0:00:03]} e5 {[%emt 0:00:12]} 2. Nf3 {[%emt 0:00:05]} Nc6 {[%emt 0:00:06]} 3. Bb5 {[%emt 0:00:18]} Nf6 {[%emt 0:00:12]} 4. d3 {[%emt 0:00:31]} Bc5 {[%emt 0:00:26]} 5. O-O {[%emt 0:00:10]} Nd4 {[%emt 0:00:31]} 6. Nxd4 {[%emt 0:00:08]} Bxd4 {[%emt 0:00:04]} 7. c3 {[%emt 0:00:08] C65: Ruy Lopez: Berlin Defence (3...Nf6), unusual lines and 4 0-0 Bc5.} Bb6 {[%emt 0:00:07]} 8. Ba4 {[%emt 0:00:05] 8.Na3 gains popularity.} O-O {[%emt 0:15:53]} 9. Bg5 {[%emt 0:02:15] The position is equal.} h6 {[%emt 0:01:24]} 10. Bh4 {[%emt 0:00:05]} d6 {[%emt 0:00:21]} 11. Nd2 {[%emt 0:01:33]} g5 {[%emt 0:02:58]} 12. Bg3 {[%emt 0:00:10]} Bg4 {[%emt 0:00:19]} 13. Qe1 {[%emt 0:00:37]} Nh5 {[%emt 0:00:52]} 14. Kh1 {[%emt 0:32:33]} Be6 {[%emt 0:30:51]} 15. Bb3 {[%emt 0:21:52]} Qd7 {[%emt 0:02:27] [#]} 16. f3 $146 {[%emt 0:14:00]} ({Predecessor:} 16. Qe2 Bg4 17. f3 Be6 18. Nc4 Kg7 19. Nxb6 axb6 20. d4 Bxb3 21. axb3 f6 22. Bf2 {1-0 So,W (2760)-Vidit,S (2722) Tata Steel India rapid 2019 (5)}) 16... f5 {[%emt 0:05:13]} 17. exf5 {[%emt 0:05:12][%mdl 64] Pin} Bxb3 {[%emt 0:03:22]} 18. axb3 {[%emt 0:00:54]} Qxf5 {[%emt 0:00:18]} 19. Qe4 {[%emt 0:02:37]} c6 {[%emt 0:01:51]} (19... Qf7 $5 {[%cal Rh5g3]} 20. Qg4 Qg6 $15) 20. Qxf5 {[%emt 0:00:53]} Rxf5 {[%emt 0:00:10]} 21. Nc4 {[%emt 0:02:02] Nxb6 is the strong threat.} Bc7 {[%emt 0:19:55]} 22. Bf2 {[%emt 0:00:26]} Nf4 {[%emt 0:01:09]} 23. Rxa7 {[%emt 0:07:09]} Rxa7 {[%emt 0:00:03]} 24. Bxa7 {[%emt 0:00:05]} Rf8 {[%emt 0:00:28]} 25. Be3 {[%emt 0:04:12]} Nxd3 {[%emt 0:08:48]} 26. Rd1 {[%emt 0:00:32]} Nf4 {[%emt 0:00:17]} (26... e4 $5 27. fxe4 b5 $11) 27. Bb6 $1 {[%emt 0:01:49]} (27. Nxd6 $2 Rd8 28. Bc5 Ne6 $19) 27... Bxb6 {[%emt 0:00:27]} 28. Nxb6 $11 {[%emt 0:00:02][%mdl 4096] Endgame KRN-KRN} d5 {[%emt 0:00:38] Prevents Nc4} 29. Nd7 {[%emt 0:00:42][%csl LRe5,LRf8]} Rf5 {[%emt 0:02:34]} 30. g4 {[%emt 0:03:30]} Rf7 {[%emt 0:00:08]} 31. Nxe5 {[%emt 0:00:03]} Re7 {[%emt 0:00:30]} 32. Re1 {[%emt 0:01:04]} Kg7 {[%emt 0:02:27] White must now prevent ...Kf6.} 33. Nd3 $1 {[%emt 0:00:05][%mdl 64] Discovered Attack} Rxe1+ {[%emt 0:00:10]} 34. Nxe1 {[%emt 0:00:04] KN-KN} Kf6 {[%emt 0:00:48]} 35. Kg1 {[%emt 0:00:04]} Ke5 {[%emt 0:00:39][%mdl 1024] Black has compensation.} 36. Kf2 {[%emt 0:00:09]} d4 {[%emt 0:00:23]} 37. Nc2 {[%emt 0:00:50]} (37. cxd4+ $11 {remains equal.} Kxd4 38. Kg3) 37... d3 {[%emt 0:01:26]} ({Better is} 37... Nd3+ $1 $17 38. Kf1 c5) 38. Ne3 {[%emt 0:00:13]} Nh3+ {[%emt 0:00:23]} 39. Kg3 {[%emt 0:00:25] And now Nc4+ would win.} Nf4 {[%emt 0:00:17]} 40. Kf2 {[%emt 0:01:01]} Nh3+ {[%emt 0:00:44]} 41. Kg3 {[%emt 0:07:29]} b5 {[%emt 0:10:07]} 42. b4 {[%emt 0:11:47][%cal Oe3f1]} (42. Kxh3 $2 Kf4 43. Nf1 Kxf3 $19) 42... Nf4 {[%emt 0:03:37]} 43. Nf1 {[%emt 0:03:55]} Nd5 {[%emt 0:01:59]} 44. Kf2 {[%emt 0:00:52]} Nb6 {[%emt 0:07:53] [#]} (44... Kf4 $11) 45. Ne3 $1 $16 {[%emt 0:03:29]} ({But not} 45. Ke3 $6 Nc4+ 46. Kxd3 Nxb2+ 47. Ke2 Na4 $11) 45... Nc4 $2 {[%emt 0:03:32][%mdl 8192]} (45... Na4 $16) 46. b3 $2 {[%emt 0:05:45]} (46. Nxc4+ $18 bxc4 47. Ke3) 46... Nd2 $11 {[%emt 0:02:14]} 47. Nd1 {[%emt 0:01:16]} Kf4 {[%emt 0:03:43]} ({Don't do} 47... Nxb3 48. Ke3 $14) 48. Nb2 {[%emt 0:00:04][%cal Rb2d3]} Nxf3 {[%emt 0:00:03] ...Ke4 would be deadly.} 49. Nxd3+ {[%emt 0:00:05]} Ke4 $1 {[%emt 0:00:11]} 50. Nc5+ {[%emt 0:00:04]} Kf4 {[%emt 0:00:06]} 51. Ne6+ {[%emt 0:00:46]} Kxg4 {[%emt 0:01:32]} 52. h3+ {[%emt 0:01:12]} Kf5 $1 {[%emt 0:00:01]} 53. Nd8 {[%emt 0:00:27]} Ne5 {[%emt 0:00:09]} 54. Kg3 {[%emt 0:00:34]} h5 {[%emt 0:01:08][%cal Bh6h5,Bh5h4,Bh4h3][%mdl 32]} 55. c4 {[%emt 0:00:04]} h4+ {[%emt 0:00:27]} 56. Kg2 {[%emt 0:00:30]} g4 {[%emt 0:00:30]} 57. hxg4+ {[%emt 0:00:04]} Kxg4 {[%emt 0:00:16]} 58. Nxc6 $2 {[%emt 0:01:42][%mdl 8192]} h3+ {[%emt 0:00:33] Black mates.} 59. Kh2 {[%emt 0:00:05]} Nxc6 {[%emt 0:00:13]} 60. cxb5 {[%emt 0:00:01] [#] KN-K3P} Nd8 $1 {[%emt 0:01:37]} ({Weaker is} 60... Nxb4 61. b6 $11) 61. b6 {[%emt 0:00:03]} Nb7 {[%emt 0:00:06]} 62. b5 {[%emt 0:00:05]} Kh4 {[%emt 0:00:16]} 63. Kh1 {[%emt 0:00:29]} Kg3 {[%emt 0:00:29]} 64. b4 {[%emt 0:00:14]} Nd6 {[%emt 0:00:07]} 65. b7 {[%emt 0:00:42]} Nxb7 {[%emt 0:00:01]} 66. b6 {[%emt 0:00:13]} Nd6 {[%emt 0:00:29]} 67. b7 {[%emt 0:00:55]} Nxb7 {[%emt 0:00:03]} 68. b5 {[%emt 0:00:02]} Nd6 {[%emt 0:00:42]} 69. b6 {[%emt 0:00:04]} Ne4 {[%emt 0:00:34] What a bad dream for White.   Weighted Error Value: White=0.29 (precise) /Black=0.09 (flawless)} 0-1

[Event "Icelandic Chess-ch 2023"]
[Site "Hafnarfjordur"]
[Date "2023.05.17"]
[Round "3.6"]
[White "Hjartarson, Johann"]
[Black "Stefansson, Vignir Vatnar"]
[Result "0-1"]
[ECO "D35"]
[WhiteElo "2466"]
[BlackElo "2470"]
[Annotator "TA"]
[PlyCount "86"]
[EventDate "2023.05.13"]
[EventType "tourn"]
[EventCountry "ISL"]
[SourceTitle "playchess.com"]
[Source "ChessBase"]
[SourceQuality "1"]
[TimeControl "40/5400+30:1800+30"]

{[%evp 18,86,16,0,0,0,0,0,0,0,0,0,0,0,0,0,0,0,7,7,7,0,0,0,-4,-18,-16,-32,-21,-33,-36,-51,-32,-55,-30,-34,-11,-11,-11,-11,-11,-11,0,0,0,0,0,0,0,0,0,0,0,-8,-8,-133,-112,-155,-97,-304,-285,-390,-374,-591,-531,-547,-526,-741,-677,-625,-620]} 1. c4 {[%emt 0:00:19]} e6 {[%emt 0:00:20]} 2. Nc3 {[%emt 0:00:08]} d5 {[%emt 0:00:05]} 3. d4 {[%emt 0:00:04]} Nf6 {[%emt 0:01:35]} 4. cxd5 {[%emt 0:00:09]} exd5 {[%emt 0:00:04]} 5. Bg5 {[%emt 0:00:08]} c6 {[%emt 0:00:05]} 6. e3 {[%emt 0:00:56]} Bd6 {[%emt 0:00:12]} 7. Bd3 {[%emt 0:00:43]} O-O {[%emt 0:00:08]} 8. Qc2 {[%emt 0:00:52]} h6 {[%emt 0:00:09]} 9. Bh4 {[%emt 0:00:05]} Re8 {[%emt 0:00:07]} 10. Nf3 {[%emt 0:01:26]} Be6 {[%emt 0:01:17] D35: Queen's Gambit Declined: Exchange Variation.} 11. O-O {[%emt 0:00:23]} Nbd7 {[%emt 0:00:06] Repels Ne5} 12. Rab1 {[%emt 0:00:48]} a5 {[%emt 0:00:12] The position is equal.} 13. Rfe1 {[%emt 0:03:49]} Qb8 {[%emt 0:00:35]} 14. Bg3 {[%emt 0:00:56]} Bxg3 {[%emt 0:00:19]} 15. hxg3 {[%emt 0:00:11]} Qd6 {[%emt 0:00:05]} 16. Rbc1 {[%emt 0:02:00]} Rac8 {[%emt 0:02:27]} 17. a3 {[%emt 0:00:45] [#]} b5 $146 {[%emt 0:03:07]} ({Predecessor:} 17... b6 18. Red1 Bg4 19. Rd2 g5 20. e4 dxe4 21. Nxe4 Nxe4 22. Bxe4 Be6 23. Qd3 Nf6 {0-1 Zatonskih,A (2348)-Stefansson,V (2466) Kragero op 2023 (9)}) 18. Ne2 {[%emt 0:15:41]} Bg4 {[%emt 0:10:02]} 19. Nd2 {[%emt 0:14:14]} Bxe2 {[%emt 0:03:23]} 20. Bxe2 {[%emt 0:00:37]} a4 {[%emt 0:01:34]} 21. Bd3 {[%emt 0:12:20]} Nb6 {[%emt 0:06:04]} 22. Nb1 {[%emt 0:08:34]} Ne4 {[%emt 0:02:51]} 23. Bxe4 {[%emt 0:09:05]} (23. Nc3 {keeps more tension.} f5 24. g4 Nxc3 25. Qxc3 fxg4 26. Bf5) 23... Rxe4 {[%emt 0:00:48]} 24. Nd2 {[%emt 0:01:54][%cal Bb1d2,Bd2e4,Be4c3][%mdl 32]} Ree8 {[%emt 0:01:08]} 25. Qc5 {[%emt 0:00:44]} Qc7 {[%emt 0:02:39]} 26. e4 {[%emt 0:06:00]} dxe4 {[%emt 0:01:34]} 27. Rxe4 {[%emt 0:00:15]} Rxe4 {[%emt 0:03:16]} 28. Nxe4 {[%emt 0:00:03]} Nc4 {[%emt 0:01:01] Dodges Nd6} 29. Nc3 {[%emt 0:02:24]} Qb6 {[%emt 0:11:55]} 30. Nxa4 {[%emt 0:01:29][%mdl 64] [#] Deflection} Qxc5 {[%emt 0:00:05]} 31. dxc5 $11 {[%emt 0:00:55][%mdl 4096] Endgame KRN-KRN} Rd8 {[%emt 0:00:56]} 32. Rc2 {[%emt 0:03:19]} Rd1+ {[%emt 0:08:02]} 33. Kh2 {[%emt 0:00:04]} Rb1 {[%emt 0:00:32]} 34. g4 {[%emt 0:01:21]} g5 {[%emt 0:01:45]} 35. g3 {[%emt 0:08:03]} Kg7 {[%emt 0:00:49]} 36. Kg2 {[%emt 0:00:16] [#]} (36. Kh3 $11) 36... Kf6 $1 $17 {[%emt 0:02:03] Black is more active.} 37. Nb6 {[%emt 0:05:45] aiming for a4.} Rxb2 {[%emt 0:00:39]} 38. Rxb2 {[%emt 0:00:59] This move loses the game for White.} (38. Rc3 $17) 38... Nxb2 {[%emt 0:00:06] KN-KN} 39. f4 {[%emt 0:01:24]} Nd3 {[%emt 0:01:47][%csl LRc5,LRf4]} 40. Nd7+ {[%emt 0:00:49]} (40. Nc8 $142 Ke6 41. Nd6) 40... Ke6 $19 {[%emt 0:00:22] Black is clearly winning.} 41. Nb8 {[%emt 0:02:10]} Kd5 {[%emt 0:00:16]} ({Worse is} 41... Nxc5 42. Nxc6 Kd5 43. Ne7+ Ke4 44. Nf5 $11) 42. fxg5 {[%emt 0:01:21]} hxg5 {[%emt 0:00:06]} (42... Nxc5 $2 43. gxh6 Nd3 44. h7 $18) 43. Na6 {[%emt 0:00:13]} Ne5 {[%emt 0:02:23] Weighted Error Value: White=0.36/Black=0.04 (flawless)} 0-1

[Event "Icelandic Chess-ch 2023"]
[Site "Hafnarfjordur"]
[Date "2023.05.18"]
[Round "4.1"]
[White "Ptacnikova, Lenka"]
[Black "Stefansson, Vignir Vatnar"]
[Result "0-1"]
[ECO "A13"]
[WhiteElo "2099"]
[BlackElo "2470"]
[Annotator "TA"]
[PlyCount "104"]
[EventDate "2023.05.13"]
[EventType "tourn"]
[EventCountry "ISL"]
[SourceTitle "playchess.com"]
[Source "ChessBase"]
[SourceQuality "1"]
[TimeControl "40/5400+30:1800+30"]

{[%evp 13,104,0,1,-1,2,-21,-31,-33,-31,-39,-35,-37,12,-39,-23,-80,-79,-88,-72,-63,-69,-64,-50,-79,-72,-78,-75,-75,-74,-59,-40,-94,-37,-31,-31,-27,-33,-33,-28,-105,-106,-127,-127,-218,-104,-102,-106,-104,-102,-107,-94,-94,-27,-27,-27,-43,-12,-12,-8,-8,-4,-43,-43,-72,-43,-43,-15,-87,-19,-19,-19,-34,0,0,0,-90,0,-79,-62,-62,-13,-13,-13,-30,-30,-45,-62,-204,-195,-182,-182,-182,-182]} 1. c4 {[%emt 0:00:04]} e6 {[%emt 0:01:35]} 2. g3 {[%emt 0:00:20]} d5 {[%emt 0:00:07]} 3. Bg2 {[%emt 0:00:11]} Nf6 {[%emt 0:00:05]} 4. Nf3 {[%emt 0:00:23]} dxc4 {[%emt 0:00:07]} 5. Qa4+ {[%emt 0:00:19]} Nbd7 {[%emt 0:00:26]} 6. O-O {[%emt 0:02:28]} a6 {[%emt 0:00:14]} 7. Qxc4 {[%emt 0:00:04]} b5 {[%emt 0:00:06]} 8. Qb3 {[%emt 0:00:19][%cal Of3e5] A13: English Opening: 1...e6.} Bb7 {[%emt 0:01:10]} 9. d4 {[%emt 0:00:26]} c5 {[%emt 0:02:18]} 10. dxc5 {[%emt 0:02:56] [#] Black is slightly better.} Rc8 $146 {[%emt 0:05:01]} ({Predecessor:} 10... Nxc5 11. Qd1 Bd6 12. Nc3 O-O 13. Bg5 Be7 14. Qxd8 Rfxd8 15. Rac1 Rac8 16. Ne5 Bxg2 17. Kxg2 {½-½ Fierro Baquero,M (2381)-Prohaszka,P (2547) Porto San Giorgio op 23rd 2011 (7)}) 11. Nc3 {[%emt 0:06:32]} Nxc5 {[%emt 0:14:05]} 12. Qd1 {[%emt 0:00:13]} Qxd1 {[%emt 0:01:16]} (12... Ncd7 $15 {was preferrable.}) 13. Nxd1 {[%emt 0:06:02] White is weak on the light squares} (13. Rxd1 $11 Be7 14. Be3) 13... Bd6 {[%emt 0:01:25]} 14. Bf4 {[%emt 0:02:03]} (14. Be3 $11) 14... Bxf4 $17 {[%emt 0:00:47]} 15. gxf4 {[%emt 0:00:04]} Nd5 {[%emt 0:00:24]} 16. e3 {[%emt 0:01:11]} Ke7 {[%emt 0:01:42]} 17. Nd4 {[%emt 0:04:11]} Rhd8 {[%emt 0:00:19][%cal Od5f4] ...Nxf4! would be deadly.} 18. Bxd5 {[%emt 0:00:33]} Bxd5 {[%emt 0:01:41]} 19. Nc3 {[%emt 0:00:06]} Nd3 {[%emt 0:06:21]} 20. Rab1 {[%emt 0:06:53]} Bb7 {[%emt 0:02:37][%cal Od3f4]} 21. Nce2 {[%emt 0:01:32]} Be4 {[%emt 0:00:08]} 22. Ng3 {[%emt 0:04:49]} (22. Rfd1 $15) 22... Bg6 {[%emt 0:05:35] Black is more active.} (22... Rxd4 $17 23. exd4 Bf3) 23. f5 $15 {[%emt 0:01:08]} exf5 $40 {[%emt 0:00:11][%mdl 128] Black attacks.} 24. Ngxf5+ {[%emt 0:05:12]} Kf6 {[%emt 0:00:09]} (24... Kf8 $5 {[%cal Rg6f5]}) 25. Ng3 {[%emt 0:00:59]} Nb4 {[%emt 0:00:40][%csl LRa2,LRb1]} 26. Ra1 {[%emt 0:01:47]} (26. Rbd1 $11) 26... Nc2 $17 {[%emt 0:00:33]} 27. Nxc2 {[%emt 0:02:42]} Rxc2 {[%emt 0:00:20]} 28. Rfc1 {[%emt 0:01:05]} (28. Rfd1 $17 {is a better defense.} Rxd1+ 29. Rxd1) 28... Rdd2 {[%emt 0:02:32]} (28... Rxb2 $19 {has better winning chances. Threatens to win with ...Rdd2.} 29. Rc6+ Kg5) 29. Rxc2 {[%emt 0:00:24]} Rxc2 {[%emt 0:00:06][%mdl 4096] Endgame KRB-KRN} 30. b4 {[%emt 0:00:37]} Rb2 {[%emt 0:01:19]} 31. a3 {[%emt 0:00:06]} Ke6 {[%emt 0:13:58]} 32. Rc1 {[%emt 0:06:07]} Rc2 {[%emt 0:00:58] Inhibits Rc6+.} (32... Bc2 $1 $17) 33. Rxc2 $11 {[%emt 0:02:20]} Bxc2 {[%emt 0:00:08] KB-KN} 34. Nf1 $1 {[%emt 0:00:24]} g5 {[%emt 0:02:50]} (34... Kf5 $5 {[%cal Rf5e4]}) 35. Nd2 {[%emt 0:02:04]} Kd5 {[%emt 0:00:16]} 36. Kg2 {[%emt 0:00:52]} h5 {[%emt 0:00:34][%cal Bh7h5,Bh5h4][%mdl 32]} 37. Kg3 {[%emt 0:16:55]} (37. h4 $5 {[%cal Rh4g5]}) 37... h4+ {[%emt 0:01:53]} 38. Kg2 {[%emt 0:04:36]} f5 {[%emt 0:00:39][%cal Bf7f5,Bf5f4][%mdl 32]} 39. Kf1 {[%emt 0:10:31]} h3 {[%emt 0:02:39]} 40. Kg1 {[%emt 0:02:40]} (40. Ke2 $11) 40... Bd1 {[%emt 0:04:14]} ({Better is} 40... Bd3 $17) 41. Kf1 {[%emt 0:31:01]} f4 {[%emt 0:31:14]} 42. Ke1 {[%emt 0:00:34] Repels f3} Bc2 {[%emt 0:00:39]} 43. Ke2 {[%emt 0:00:31]} g4 {[%emt 0:00:16][%cal Og4g3]} 44. Kf1 {[%emt 0:02:40]} (44. exf4 $11 Kd4 45. Ke1) 44... Ke5 {[%emt 0:03:32]} ({Black should try} 44... Bd3+ $17 45. Kg1 f3) 45. Kg1 {[%emt 0:01:10]} (45. exf4+ $11 {remains equal.} Kxf4 46. Ke2) 45... Kf5 {[%emt 0:01:38]} 46. Kf1 {[%emt 0:01:01]} Be4 {[%emt 0:07:48]} (46... f3 $15) 47. exf4 $1 {[%emt 0:00:00]} Bd3+ {[%emt 0:00:00]} 48. Kg1 $1 {[%emt 0:00:00]} Kxf4 {[%emt 0:00:00] Strongly threatening ...Bc4.} 49. Nb3 $1 {[%emt 0:00:00]} Bf5 {[%emt 0:00:00] And now ...Be6 would win.} 50. Nc5 {[%emt 0:00:00] Inhibits Be6.} (50. Kf1 $1 $15) 50... Bc8 $1 $19 {[%emt 0:00:00] Black is clearly better.} 51. Kf1 {[%emt 0:00:00] [#]} Ke5 $1 {[%emt 0:00:00]} 52. Nb3 {[%emt 0:00:00] [#]} Kd5 $1 {[%emt 0:00:00] Weighted Error Value: White=0.22 (precise) /Black=0.17 (very precise)} 0-1

[Event "Icelandic Chess-ch 2023"]
[Site "Hafnarfjordur"]
[Date "2023.05.18"]
[Round "4.2"]
[White "Kjartansson, Gudmundur"]
[Black "Hjartarson, Johann"]
[Result "1-0"]
[ECO "A30"]
[WhiteElo "2402"]
[BlackElo "2466"]
[Annotator "TA"]
[PlyCount "105"]
[EventDate "2023.05.13"]
[EventType "tourn"]
[EventCountry "ISL"]
[SourceTitle "playchess.com"]
[Source "ChessBase"]
[SourceQuality "1"]
[TimeControl "40/5400+30:1800+30"]

{[%evp 22,105,31,37,49,16,27,18,36,4,18,16,11,15,22,16,32,39,41,20,35,22,34,27,16,12,37,35,39,13,21,25,59,58,58,59,53,53,66,76,78,13,13,16,14,8,10,8,110,84,129,139,151,144,124,48,51,48,177,49,48,47,51,52,117,114,279,277,366,348,403,403,393,384,384,339,453,452,416,387,1980,1889,29971,29972,4141,4141]} 1. Nf3 {[%emt 0:00:10]} Nf6 {[%emt 0:00:18]} 2. c4 {[%emt 0:00:06]} c5 {[%emt 0:00:45]} 3. Nc3 {[%emt 0:00:58]} e6 {[%emt 0:00:11]} 4. g3 {[%emt 0:00:13]} b6 {[%emt 0:00:08]} 5. Bg2 {[%emt 0:00:05]} Bb7 {[%emt 0:00:05]} 6. O-O {[%emt 0:00:07]} Be7 {[%emt 0:00:05]} 7. d4 {[%emt 0:00:57]} cxd4 {[%emt 0:00:08]} 8. Qxd4 {[%emt 0:00:17]} d6 {[%emt 0:00:10]} 9. Rd1 {[%emt 0:01:18]} O-O {[%emt 0:01:00]} 10. Bg5 {[%emt 0:00:37]} Nbd7 {[%emt 0:00:16]} 11. Nb5 {[%emt 0:00:49]} d5 {[%emt 0:01:03]} 12. cxd5 {[%emt 0:00:08]} exd5 {[%emt 0:01:34] A30: Symmetrical English: Double Fianchetto and Hedgehog.} 13. Nc3 {[%emt 0:30:10]} h6 {[%emt 0:04:09] [#]} 14. Be3 $146 {[%emt 0:07:45]} ({Predecessor:} 14. Bf4 Bc5 15. Qd3 Re8 16. Nd4 a6 17. Rac1 Ne5 18. Bxe5 Rxe5 19. e3 Qd7 20. Nde2 {½-½ Ibarra Jerez,J (2561)-Martinez Alcantara,J (2620) Iberoamericano Chess24 blitz 2020 (3.7)}) 14... Re8 {[%emt 0:04:13] The position is equal.} 15. Qd3 {[%emt 0:10:11]} Nc5 {[%emt 0:04:23]} 16. Qf5 {[%emt 0:02:30]} g6 {[%emt 0:10:53]} 17. Qc2 {[%emt 0:07:00]} Bf8 {[%emt 0:00:29][%cal Oe8e3]} 18. Bd4 {[%emt 0:02:13]} Bg7 {[%emt 0:01:05]} 19. e3 {[%emt 0:03:44]} Qe7 {[%emt 0:02:28]} 20. Bxf6 {[%emt 0:04:35]} Qxf6 {[%emt 0:00:31]} 21. Nd4 {[%emt 0:00:11]} Ne4 {[%emt 0:14:01]} 22. Rac1 {[%emt 0:00:44]} a6 {[%emt 0:06:56] Inhibits Ndb5.} 23. Bh3 {[%emt 0:07:01]} Re7 {[%emt 0:04:33]} 24. Nxe4 {[%emt 0:01:38]} dxe4 {[%emt 0:00:15]} 25. b4 {[%emt 0:01:01]} h5 {[%emt 0:04:40]} 26. a4 {[%emt 0:00:24]} h4 {[%emt 0:01:58]} 27. Nc6 {[%emt 0:02:15]} Rc7 {[%emt 0:01:50][%cal Rc7c6]} 28. b5 {[%emt 0:00:11]} axb5 {[%emt 0:06:10]} 29. axb5 {[%emt 0:00:03]} hxg3 {[%emt 0:02:26]} 30. hxg3 {[%emt 0:00:07]} Qb2 {[%emt 0:07:07]} 31. Bd7 {[%emt 0:12:49]} (31. Qc4 $16) 31... Qxc2 $1 $11 {[%emt 0:02:07]} (31... Qxb5 $2 32. Ne7+ (32. Qxe4 Qh5 $15) 32... Kh7 33. Qxc7 $18) 32. Rxc2 {[%emt 0:00:00] Black must now prevent Ne7+.} Kf8 {[%emt 0:00:29] Wards off Ne7} 33. Kg2 {[%emt 0:02:21]} Bf6 {[%emt 0:03:32]} 34. Rc4 {[%emt 0:00:25][%cal Oc6a5]} Kg7 {[%emt 0:01:58] [#]} (34... Ra1 $11 35. Rd2 Be7) 35. Na5 $1 $16 {[%emt 0:03:32][%mdl 576] Discovered Attack. White is more active.} Rxc4 {[%emt 0:02:55]} (35... Rcc8 36. Rxc8) 36. Nxc4 {[%emt 0:00:00][%cal Oc4d6] Nd6! is the strong threat.} Ra2 {[%emt 0:06:38]} 37. Nd6 {[%emt 0:00:15]} Bg5 {[%emt 0:01:04][%cal Og5e3]} 38. Nxb7 {[%emt 0:01:33]} (38. Kg1 $16 Ba8 39. Nc8) 38... Bxe3 $14 {[%emt 0:00:05]} 39. Rf1 {[%emt 0:00:23] aiming for Nd6.} Bd4 {[%emt 0:00:52]} (39... Rd2 $1 $14) 40. Kg1 {[%emt 0:01:01]} (40. Nd6 $18) 40... Rd2 {[%emt 0:00:31][%cal Od4f2] ...Bxf2+! would be deadly.} 41. Bc6 {[%emt 0:05:02]} f5 {[%emt 0:00:58]} 42. Nd6 {[%emt 0:01:13][%cal Og3g4]} Rc2 {[%emt 0:04:27] [#]} (42... Kh6 $14) 43. Ne8+ $1 $16 {[%emt 0:04:08]} Kh6 $2 {[%emt 0:06:11] [#]} (43... Kf7 $16 {was necessary.} 44. Nc7 Kf6 45. Nd5+ Ke5) 44. Nc7 $1 $18 {[%emt 0:00:32]} e3 {[%emt 0:00:36][%cal Rc2f2]} 45. Ne6 {[%emt 0:09:38]} Be5 {[%emt 0:00:23]} 46. fxe3 {[%emt 0:00:45]} Bxg3 {[%emt 0:00:08]} 47. Rf3 {[%emt 0:00:52]} Bh4 {[%emt 0:00:10]} 48. e4 {[%emt 0:01:11]} fxe4 {[%emt 0:01:05]} 49. Bxe4 {[%emt 0:02:41]} ({Not} 49. Rh3 g5 50. Bxe4 Re2 $18) 49... Re2 {[%emt 0:00:34]} 50. Rf4 {[%emt 0:02:50][%cal Rf4h4]} ({Resist} 50. Bd5 Re1+ 51. Kg2 Re2+ 52. Kh3 Be7 $18) 50... Bg5 {[%emt 0:00:07]} (50... Be7 51. Kf1 Ra2) 51. Rg4 {[%emt 0:02:55]} Be3+ {[%emt 0:00:09]} 52. Kf1 {[%emt 0:00:17][%cal Rg4h4]} Rf2+ {[%emt 0:02:45]} 53. Ke1 {[%emt 0:00:02] Weighted Error Value: White=0.14 (very precise) /Black=0.37} 1-0